{"text_format":"1","workbook":"xlsx","n_sheets":1,"sheets":["Задания"],"not_rendered":{"charts":0,"images":0,"macros":1,"external_links":0,"defined_names":0,"comments":0,"pivot_tables":0},"unopened":[],"bounds":{"document_bytes":16777216,"sheet_cells":100000,"rows_first":2000,"rows_last":500,"rows_between":2000,"halvings":0,"cell_chars":16384,"cell_head_chars":4096},"cells_cut":0,"cells_raw":0,"read":"whole","date_system":"1900"}

{"sheet":"Задания","index":0,"n_rows":32,"n_cols":9,"rows_kept":32,"cut":false,"hidden":false,"merged":[]}
["Таблица1",null,null,null,null,null,null,"Таблица2"]
["ID","Продукт","Стоимость","ID (Таблица2)","Предприятие (Таблица2)","Совпадение ID",null,"ID","Предприятие"]
[1,"name1",1280,5,{"$f":"VLOOKUP(D3,$H$3:$I$7,2,FALSE)","v":"fabric5"},{"$f":"IF(A3=D3,\"Да\",\"\")","v":""},null,1,"fabric1"]
[2,"name2",850,4,"fabric4","",null,2,"fabric2"]
[3,"name3",970,2,"fabric2","",null,3,"fabric3"]
[4,"name4",1250,3,"fabric3","",null,4,"fabric4"]
[5,"name5",1100,5,"fabric5","Да",null,5,"fabric5"]
[6,"name6",1060,2,"fabric2",""]
[7,"name7",1220,5,"fabric5",""]
[8,"name8",450,2,"fabric2",""]
[9,"name9",690,3,"fabric3",""]
[10,"name10",1130,1,"fabric1",""]
[11,"name11",890,4,"fabric4",""]
[12,"name12",810,1,"fabric1",""]
[13,"name13",940,3,"fabric3",""]
[14,"name14",1020,2,"fabric2",""]
[15,"name15",1570,5,"fabric5",""]
[16,"name16",1230,4,"fabric4",""]
[17,"name17",980,3,"fabric3",""]
[18,"name18",910,1,"fabric1",""]
[19,"name19",1320,1,"fabric1",""]
[20,"name20",1010,2,"fabric2",""]
[]
["Задания"]
[1,"Привязать к Таблице1 значения столбца Предприятие (из Таблицы2) с помощью функции =ВПР(). Функции и результат записать в ячейках E3:E22."]
[2,"Подсчитать количество записей в Таблица1, имеющих значение 3 в поле ID (Таблица2) с помощью функции =СЧЁТЕСЛИ(). Функцию и результат записать в ячейке B27."]
[null,{"$f":"COUNTIF(D3:D22,3)","v":4}]
[3,"Рассчитать общую стоимость продукции предприятия, ID которого равен 2, с помощью функции = СУММЕСЛИ(). Функцию и результат записать в ячейке B29."]
[null,{"$f":"SUMIF(D3:D22,2,C3:C22)","v":4510}]
[4,"Сделать пометки на строках Таблицы1, на которых ID = ID (Таблица2) с помощью функции =ЕСЛИ(). В случае совпадения вывести значение \"Да\", в остальных случаях - \"\". Функции и результат записать в ячейках F3:F22."]
["*5","Написать макрос с помощью VBA, окрашивающий строки (столбцы A:D) Таблицы1 в бирюзовый цвет, значения поля Стоимость которых превышает или равно 1000."]
[null,"Примечание. Метод изменения фона ячейки: .Interior.Color, цвет: vbCyan."]